fUSD/lending_fUSD_20260423
["ID","MTS","AMOUNT","RATE_DAILY","PERIOD"]
[420995973,1776881432553,-355.29175515,8.506e-05,2]
[420995974,1776881432562,-755.40294368,8.506e-05,2]
[420995975,1776881432572,-300.0,8.563e-05,2]
[420995976,1776881432581,-5000.0,8.563e-05,2]
[420995977,1776881432590,-235.11022874,8.563e-05,2]
[420995978,1776881432600,-193.0,8.563e-05,2]
[420995979,1776881432609,-301.94191114,8.563e-05,2]
[420995980,1776881432619,-5000.0,8.563e-05,2]
[420995981,1776881432628,-500.0,8.563e-05,2]
[420995982,1776881432638,-193.0,8.563e-05,2]
[420995983,1776881432647,-349.59067719,8.563e-05,2]
[420995984,1776881432657,-250.0,8.563e-05,2]
[420995985,1776881432666,-193.0,8.563e-05,2]
[420995986,1776881432675,-500.0,8.563e-05,2]
[420995987,1776881432685,-300.0,8.563e-05,2]
[420995988,1776881432695,-300.0,8.563e-05,2]
[420995989,1776881432704,-300.0,8.563e-05,2]
[420995990,1776881432715,-5000.0,8.563e-05,2]
[420995991,1776881432725,-2373.59601003,8.563e-05,2]
[420995992,1776881432735,-79057.0199145,8.651e-05,2]
[420995993,1776881432744,-15568.30150592,8.67e-05,2]
[420995994,1776881432757,-2322.31640064,8.67e-05,2]
[420995995,1776881432769,-6285.60134223,8.67e-05,2]
[420995996,1776881432781,-934.45208279,8.67e-05,2]
[420996001,1776881437576,-10197.45933794,8.67e-05,2]
[420996002,1776881437586,-1532.0,8.756e-05,2]
[420996003,1776881437597,-1532.0,8.756e-05,2]
[420996004,1776881437608,-1532.0,8.756e-05,2]
[420996005,1776881437618,-152.0,8.756e-05,2]
[420996006,1776881437629,-152.0,8.756e-05,2]
[420996007,1776881437639,-151.0,8.756e-05,2]
[420996008,1776881437649,-151.0,8.756e-05,2]
[420996009,1776881437660,-151.0,8.756e-05,2]
[420996010,1776881437671,-151.0,8.756e-05,2]
[420996011,1776881437681,-337.45912999,8.843e-05,2]
[420996012,1776881437691,-500.0,8.843e-05,2]
[420996039,1776881438253,-160.12952887,8.843e-05,2]
[420996044,1776881438294,-500.0,8.843e-05,2]
[420996046,1776881438304,-200.19658438,8.843e-05,2]
[420996048,1776881438313,-500.0,8.843e-05,2]
[420996050,1776881438323,-1018.00837152,8.855e-05,3]
[420996052,1776881438332,-3039.17,8.864e-05,2]
[420996054,1776881438341,-9999.99,8.864e-05,2]
[420996056,1776881438350,-9999.99,8.864e-05,2]
[420996058,1776881438359,-150.99,8.864e-05,2]
[420996060,1776881438368,-6724.9482333,8.864e-05,2]
[420996064,1776881438394,-500.0,8.405e-05,2]
[420996066,1776881438403,-16844.45971582,8.864e-05,2]
[420996069,1776881438419,-730.938443,8.864e-05,2]
[420996073,1776881438448,-699.64360788,8.864e-05,2]
[420996075,1776881438458,-1427.9254024,8.864e-05,2]
[420996083,1776881440052,-473.2109,8.082e-05,2]
[420996084,1776881440063,-33.9691,8.864e-05,2]
[420996085,1776881440313,-1297.99614846,8.864e-05,2]
[420996086,1776881440367,-408.2988015,8.864e-05,2]
[420996087,1776881440422,-1583.41326918,8.864e-05,2]
[420996101,1776881443627,-901.21440405,8.864e-05,2]
[420996102,1776881443642,-680.76275655,8.864e-05,2]
[420996103,1776881443653,-1363.63326198,8.864e-05,2]
[420996104,1776881443665,-1057.89460526,8.864e-05,2]
[420996105,1776881443677,-4605.77225062,8.864e-05,2]
[420996106,1776881443686,-492.21504311,8.864e-05,2]
[420996107,1776881443698,-1143.02930338,8.864e-05,2]
[420996108,1776881443709,-493.94296352,8.864e-05,2]
[420996109,1776881443746,-2792.48268999,8.864e-05,2]
[420996110,1776881443755,-4972.7647252,8.864e-05,2]
[420996111,1776881443774,-941.3763412,8.864e-05,2]
[420996118,1776881445553,-553.5,8.864e-05,2]
[420996119,1776881445577,-1362.91705858,8.864e-05,2]
[420996120,1776881445651,-6301.40187502,8.864e-05,2]
[420996121,1776881445661,-999.99,8.864e-05,2]
[420996122,1776881445670,-299.99,8.864e-05,2]
[420996123,1776881445679,-1483.49,8.864e-05,2]
[420996124,1776881445689,-745.47899854,8.864e-05,2]
[420996125,1776881445711,-431.885,8.864e-05,2]
[420996126,1776881445723,-451.18461182,8.864e-05,2]
[420996127,1776881445795,-26421.39138964,8.864e-05,2]
[420996128,1776881445804,-9999.99,8.864e-05,2]
[420996129,1776881445814,-4000.453875,8.864e-05,2]
[420996130,1776881445825,-804.94870996,8.864e-05,2]
[420996131,1776881445956,-838.46413676,8.864e-05,2]
[420996132,1776881445968,-1123.71239335,8.864e-05,2]
[420996137,1776881819913,-1223.540394,7.881e-05,2]
[420996138,1776881942850,2405.35,0.00011987,16]
[420996139,1776881942884,544.5995333,0.00011987,16]
[420996140,1776881984342,-250.0,7.777e-05,2]
[420996141,1776881985759,-180.69605602,7.777e-05,2]
[420996149,1776882317363,150.0,7.471e-05,2]
[420996150,1776882317424,150.0,7.471e-05,2]
[420996151,1776882324178,150.0,7.471e-05,2]
[420996152,1776882334209,150.0,7.471e-05,2]
[420996153,1776882334277,150.0,7.471e-05,2]
[420996154,1776882334352,150.0,7.527e-05,2]
[420996155,1776882334387,150.0,7.582e-05,2]
[420996156,1776882334440,150.0,7.637e-05,2]
[420996157,1776882334512,150.0,7.693e-05,2]
[420996160,1776882480956,-150.0,7.748e-05,2]
[420996161,1776882480989,-623.19394398,7.777e-05,2]
[420996162,1776882481020,-150.0,7.803e-05,2]
[420996163,1776882481051,-150.0,7.859e-05,2]
[420996164,1776882481080,-1200.0,7.88e-05,2]
[420996165,1776882481109,-300.0,7.88e-05,2]
[420996166,1776882481719,-3930.42816806,7.881e-05,2]
[420996167,1776882481751,-4561.71143794,7.881e-05,2]
[420996168,1776882481781,-150.0,7.914e-05,2]
[420996169,1776882481812,-150.0,7.969e-05,2]
[420996170,1776882481839,-76.58712412,7.982e-05,2]
[420996171,1776882481939,-123.41287588,7.982e-05,2]
[420996172,1776882483845,-150.0,8e-05,2]
[420996173,1776882483877,-150.0,8.025e-05,2]
[420996174,1776882483910,-150.0,8.08e-05,2]
[420996175,1776882483941,-150.0,8.135e-05,2]
[420996176,1776882483970,-486.90347,8.178e-05,2]
[420996177,1776882484057,-2173.80694,8.178e-05,2]
[420996178,1776882484090,-5652.39612,8.178e-05,2]
[420996179,1776882484104,-150.0,8.191e-05,2]
[420996180,1776882484114,-7676.20306,8.204e-05,2]
[420996184,1776882631930,-1223.540394,8.178e-05,2]
[420996185,1776882631941,-500.0,8.183e-05,2]
[420996186,1776882631953,-501.87657932,8.183e-05,2]
[420996187,1776882631964,-500.0,8.183e-05,2]
[420996188,1776882631975,-500.0,8.183e-05,2]
[420996189,1776882631987,-1200.0,8.202e-05,2]
[420996190,1776882631998,-150.0,8.202e-05,2]
[420996191,1776882632010,-169.0,8.202e-05,2]
[420996192,1776882632020,-300.0,8.202e-05,2]
[420996193,1776882632032,-216.6071381,8.203e-05,2]
[420996194,1776882632043,-279.95873465,8.203e-05,2]
[420996195,1776882632055,-500.0,8.203e-05,2]
[420996196,1776882632067,-500.0,8.203e-05,2]
[420996197,1776882632078,-500.0,8.203e-05,2]
[420996198,1776882632089,-434.23710968,8.203e-05,2]
[420996199,1776882632101,-500.0,8.203e-05,2]
[420996200,1776882632112,-339.19347396,8.203e-05,2]
[420996201,1776882632123,-609.67197532,8.203e-05,2]
[420996202,1776882633785,-500.0,8.203e-05,2]
[420996203,1776882633826,-500.0,8.203e-05,2]
[420996204,1776882633850,-500.0,8.203e-05,2]
[420996205,1776882633889,-500.0,8.203e-05,2]
[420996206,1776882633898,-500.0,8.203e-05,2]
[420996207,1776882633908,-500.0,8.203e-05,2]
[420996208,1776882633917,-500.0,8.203e-05,2]
[420996209,1776882633927,-500.0,8.203e-05,2]
[420996210,1776882633937,-500.0,8.203e-05,2]
[420996211,1776882633946,-500.0,8.203e-05,2]
[420996212,1776882633955,-265.74045837,8.203e-05,2]
[420996213,1776882633965,-500.0,8.203e-05,2]
[420996214,1776882633974,-500.0,8.203e-05,2]
[420996215,1776882633983,-500.0,8.203e-05,2]
[420996216,1776882633992,-500.0,8.203e-05,2]
[420996217,1776882634001,-500.0,8.203e-05,2]
[420996218,1776882634011,-649.33614624,8.203e-05,2]
[420996219,1776882634020,-500.0,8.203e-05,2]
[420996220,1776882634029,-485.77406557,8.203e-05,2]
[420996221,1776882634039,-500.0,8.203e-05,2]
[420996222,1776882634048,-500.0,8.203e-05,2]
[420996223,1776882634057,-500.0,8.203e-05,2]
[420996224,1776882634067,-500.0,8.203e-05,2]
[420996225,1776882634076,-500.0,8.203e-05,2]
[420996226,1776882634086,-500.0,8.203e-05,2]
[420996227,1776882634095,-500.0,8.203e-05,2]
[420996228,1776882634104,-500.0,8.203e-05,2]
[420996229,1776882634114,-500.0,8.203e-05,2]
[420996230,1776882634123,-271.54676022,8.203e-05,2]
[420996231,1776882634133,-500.0,8.203e-05,2]
[420996232,1776882634147,-500.0,8.203e-05,2]
[420996233,1776882634157,-500.0,8.203e-05,2]
[420996234,1776882634166,-500.0,8.203e-05,2]
[420996235,1776882634175,-500.0,8.203e-05,2]
[420996236,1776882634185,-500.0,8.203e-05,2]
[420996237,1776882634194,-500.0,8.203e-05,2]
[420996238,1776882634204,-500.0,8.203e-05,2]
[420996239,1776882634213,-500.0,8.203e-05,2]
[420996240,1776882634222,-500.0,8.203e-05,2]
[420996241,1776882634231,-500.0,8.203e-05,2]
[420996242,1776882634240,-500.0,8.203e-05,2]
[420996243,1776882634250,-500.0,8.203e-05,2]
[420996244,1776882634259,-500.0,8.203e-05,2]
[420996245,1776882634268,-500.0,8.203e-05,2]
[420996246,1776882634277,-500.0,8.203e-05,2]
[420996247,1776882634287,-500.0,8.203e-05,2]
[420996248,1776882634296,-500.0,8.203e-05,2]
[420996249,1776882634305,-500.0,8.203e-05,2]
[420996250,1776882634315,-500.0,8.203e-05,2]
[420996251,1776882634324,-500.0,8.203e-05,2]
[420996252,1776882634333,-500.0,8.203e-05,2]
[420996253,1776882634343,-500.0,8.203e-05,2]
[420996254,1776882634352,-500.0,8.203e-05,2]
[420996255,1776882634361,-500.0,8.203e-05,2]
[420996256,1776882634370,-151.62499667,8.203e-05,2]
[420996257,1776882634380,-500.0,8.203e-05,2]
[420996258,1776882634389,-500.0,8.203e-05,2]
[420996259,1776882634398,-500.0,8.203e-05,2]
[420996260,1776882634407,-500.0,8.203e-05,2]
[420996261,1776882634416,-500.0,8.203e-05,2]
[420996262,1776882634426,-336.04987348,8.203e-05,2]
[420996263,1776882634434,-500.0,8.203e-05,2]
[420996264,1776882634444,-500.0,8.203e-05,2]
[420996265,1776882634453,-500.0,8.203e-05,2]
[420996266,1776882634462,-500.0,8.203e-05,2]
[420996267,1776882634471,-500.0,8.203e-05,2]
[420996268,1776882634480,-641.38017031,8.203e-05,2]
[420996269,1776882634489,-499.99999999,8.203e-05,2]
[420996270,1776882634498,-500.0,8.203e-05,2]
[420996271,1776882634507,-500.0,8.203e-05,2]
[420996272,1776882634516,-206.72208166,8.203e-05,2]
[420996273,1776882634526,-500.0,8.203e-05,2]
[420996274,1776882634536,-500.0,8.203e-05,2]
[420996275,1776882634545,-206.72208165,8.203e-05,2]
[420996276,1776882634554,-500.0,8.203e-05,2]
[420996277,1776882634563,-500.0,8.203e-05,2]
[420996278,1776882634572,-413.4441633,8.203e-05,2]
[420996279,1776882634581,-500.0,8.203e-05,2]
[420996280,1776882634590,-500.0,8.203e-05,2]
[420996281,1776882634599,-500.0,8.203e-05,2]
[420996282,1776882634608,-500.0,8.203e-05,2]
[420996283,1776882634617,-206.72208165,8.203e-05,2]
[420996284,1776882634627,-500.0,8.203e-05,2]
[420996285,1776882634636,-500.0,8.203e-05,2]
[420996286,1776882634645,-206.72208165,8.203e-05,2]
[420996287,1776882634654,-1000.0,8.203e-05,2]
[420996288,1776882634662,-442192.94214,8.204e-05,2]
[420996289,1776882634671,-5565.4055,8.205e-05,2]
[420996290,1776882634681,-214.71422908,8.205e-05,2]
[420996291,1776882634690,-500.0,8.219e-05,2]
[420996292,1776882634699,-500.0,8.219e-05,2]
[420996293,1776882634709,-254.98785288,8.219e-05,2]
[420996294,1776882634718,-500.0,8.219e-05,2]
[420996295,1776882634727,-500.0,8.219e-05,2]
[420996296,1776882634737,-2000.0,8.219e-05,2]
[420996297,1776882634746,-150.0,8.246e-05,2]
[420996298,1776882634754,-500.0,8.283e-05,2]
[420996299,1776882634764,-1671.189,8.283e-05,2]
[420996300,1776882634773,-175.966,8.283e-05,2]
[420996301,1776882634782,-150.0,8.3e-05,2]
[420996302,1776882634791,-150.0,8.301e-05,2]
[420996303,1776882634800,-9999.99,8.304e-05,2]
[420996304,1776882634810,-299.99,8.304e-05,2]
[420996305,1776882634819,-9999.99,8.304e-05,2]
[420996306,1776882634829,-150.99,8.304e-05,2]
[420996307,1776882634837,-952.94,8.304e-05,2]
[420996308,1776882634847,-999.99,8.304e-05,2]
[420996309,1776882634856,-10717.75,8.304e-05,2]
[420996310,1776882634865,-150.0,8.304e-05,2]
[420996311,1776882634874,-1236.68,8.304e-05,2]
[420996312,1776882634884,-500.0,8.411e-05,2]
[420996313,1776882634893,-250.0,8.523e-05,2]
[420996314,1776882634902,-1236.68,8.578e-05,2]
[420996315,1776882634911,-500.0,8.658e-05,2]
[420996316,1776882634920,-500.0,8.731e-05,2]
[420996317,1776882634929,-169.31,8.772e-05,2]
[420996318,1776882634939,-250.0,8.8e-05,2]
[420996319,1776882634948,-150.0,8.831e-05,2]
[420996320,1776882634957,-1298.4597815,8.847e-05,2]
[420996321,1776882634966,-16950.0595061,8.847e-05,2]
[420996322,1776882634975,-1552.5761508,8.85e-05,2]
[420996323,1776882634984,-1236.68,8.852e-05,2]
[420996324,1776882634993,-175792.1580633,8.859e-05,2]
[420996325,1776882635003,-4504.0145079,8.859e-05,2]
[420996326,1776882635012,-500.0,8.864e-05,2]
[420996327,1776882635021,-158.0,8.864e-05,3]
[420996328,1776882635031,-333.0,8.864e-05,3]
[420996329,1776882635041,-150.0,8.883e-05,2]
[420996330,1776882635049,-150.0,8.883e-05,2]
[420996331,1776882635059,-152.05487322,8.883e-05,2]
[420996332,1776882635068,-758.1,8.932e-05,2]
[420996333,1776882635076,-338.92195549,8.98e-05,2]
[420996334,1776882635086,-500.0,8.986e-05,2]
[420996335,1776882635095,-250.0,8.996e-05,2]
[420996336,1776882635104,-1680.0,9.022e-05,2]
[420996337,1776882635113,-255.0,9.022e-05,2]
[420996338,1776882635122,-420.0,9.022e-05,2]
[420996339,1776882635131,-500.0,9.068e-05,2]
[420996340,1776882635140,-182.94,9.116e-05,2]
[420996341,1776882635150,-2589.05,9.123e-05,2]
[420996342,1776882635159,-1236.68,9.126e-05,2]
[420996343,1776882635168,-2000.0,9.247e-05,2]
[420996344,1776882635178,-321.98160877,9.338e-05,2]
[420996345,1776882635187,-1236.68,9.4e-05,2]
[420996346,1776882635196,-1600.0,9.455e-05,2]
[420996347,1776882635206,-150.0,9.473e-05,3]
[420996348,1776882635215,-500.0,9.473e-05,3]
[420996349,1776882635225,-257.76927682,9.473e-05,3]
[420996350,1776882635234,-500.0,9.473e-05,3]
[420996351,1776882635244,-500.0,9.473e-05,3]
[420996352,1776882635254,-500.0,9.473e-05,3]
[420996353,1776882635263,-500.0,9.473e-05,3]
[420996354,1776882635272,-414.61492121,9.473e-05,3]
[420996355,1776882635282,-500.0,9.507e-05,2]
[420996356,1776882635291,-333.0,9.555e-05,3]
[420996357,1776882635300,-182.94,9.596e-05,2]
[420996358,1776882635311,-150.0,9.643e-05,2]
[420996359,1776882635319,-1219.0,9.643e-05,2]
[420996360,1776882635328,-927.0,9.643e-05,2]
[420996361,1776882635338,-6031.0,9.643e-05,2]
[420996362,1776882635346,-3530.0,9.643e-05,2]
[420996363,1776882635356,-1666.0,9.654e-05,5]
[420996364,1776882635365,-1236.68,9.674e-05,2]
[420996365,1776882635374,-151.0,9.692e-05,2]
[420996366,1776882635383,-1555.45177686,9.8e-05,2]
[420996367,1776882635392,-1360.0,9.84e-05,5]
[420996368,1776882635401,-1453.0,9.84e-05,5]
[420996369,1776882635412,-250.0,9.863e-05,2]
[420996370,1776882635421,-250.0,9.863e-05,2]
[420996371,1776882635430,-158.0,9.874e-05,3]
[420996372,1776882635439,-2351.0,9.924e-05,2]
[420996373,1776882635448,-433.0,9.924e-05,2]
[420996374,1776882635457,-587.0,9.924e-05,2]
[420996375,1776882635466,-1236.68,9.948e-05,2]
[420996376,1776882635475,-274.0,9.957e-05,2]
[420996377,1776882635484,-150.0,9.957e-05,2]
[420996378,1776882635493,-150.069,9.957e-05,2]
[420996379,1776882635503,-150.0,9.957e-05,2]
[420996380,1776882635513,-150.0,9.957e-05,2]
[420996381,1776882635522,-3782.0694921,9.97e-05,2]
[420996382,1776882635531,-500.0,9.973e-05,2]
[420996383,1776882635540,-500.0,9.973e-05,2]
[420996384,1776882635549,-500.0,9.973e-05,2]
[420996385,1776882635559,-500.0,9.973e-05,2]
[420996386,1776882635568,-39224.5323815,9.983e-05,2]
[420996387,1776882635577,-1004.9814784,9.983e-05,2]
[420996388,1776882635587,-151.0,9.997e-05,2]
[420996389,1776882635596,-151.0,9.997e-05,2]
[420996390,1776882635605,-300000.0,0.0001,2]
[420996391,1776882635615,-39120.09832266,0.0001,2]
[420996392,1776882635624,-755.46528977,0.0001,2]
[420996393,1776882635633,-344.69810831,0.0001,2]
[420996394,1776882635643,-1267.49764064,0.0001,2]
[420996395,1776882635652,-986.71505141,0.0001,2]
[420996396,1776882635661,-758.84888102,0.0001,2]
[420996397,1776882635670,-1172.99965373,0.0001,2]
[420996398,1776882635679,-151.0,0.0001,2]
[420996399,1776882635688,-500.0,0.0001,2]
[420996400,1776882635697,-151.0,0.0001,2]
[420996401,1776882635706,-500.0,0.0001,2]
[420996402,1776882635716,-500.0,0.0001,2]
[420996403,1776882635725,-151.0,0.0001,2]
[420996404,1776882635734,-500.0,0.0001,2]
[420996405,1776882635744,-151.0,0.0001,2]
[420996406,1776882635753,-500.0,0.0001,2]
[420996407,1776882635762,-151.0,0.0001,2]
[420996408,1776882635771,-500.0,0.0001,2]
[420996409,1776882635781,-151.0,0.0001,2]
[420996410,1776882635790,-500.0,0.0001,2]
[420996411,1776882635799,-151.0,0.0001,2]
[420996412,1776882635809,-151.0,0.0001,2]
[420996413,1776882635818,-500.0,0.0001,2]
[420996414,1776882635827,-500.0,0.0001,2]
[420996415,1776882635836,-151.0,0.0001,2]
[420996416,1776882635845,-151.0,0.0001,2]
[420996417,1776882635854,-406.62738358,0.0001,2]
[420996418,1776882635863,-151.0,0.0001,2]
[420996419,1776882635873,-500.0,0.0001,2]
[420996420,1776882635883,-500.0,0.0001,2]
[420996421,1776882635892,-500.0,0.0001,2]
[420996422,1776882635901,-500.0,0.0001,2]
[420996423,1776882635910,-500.0,0.0001,2]
[420996424,1776882635919,-500.0,0.0001,2]
[420996425,1776882635928,-500.0,0.0001,2]
[420996426,1776882635937,-201.1357564,0.0001,2]
[420996427,1776882635946,-158.33157,0.0001,2]
[420996428,1776882635955,-158.33158,0.0001,2]
[420996429,1776882635964,-158.33157,0.0001,2]
[420996430,1776882635973,-638.3,0.00010019,2]
[420996431,1776882635983,-182.94,0.00010076,2]
[420996432,1776882635992,-578.20924308,0.00010173,2]
[420996433,1776882636001,-200.0,0.00010173,2]
[420996434,1776882636010,-500.0,0.00010173,2]
[420996435,1776882636019,-721.12765535,0.00010173,2]
[420996436,1776882636028,-151.0,0.00010173,2]
[420996437,1776882636037,-1428.38747117,0.00010173,2]
[420996438,1776882636047,-200.0,0.00010173,2]
[420996439,1776882636056,-151.0,0.00010173,2]
[420996440,1776882636066,-209.40437684,0.00010173,2]
[420996441,1776882636075,-174.61919141,0.00010173,2]
[420996442,1776882636084,-743.50770149,0.00010173,2]
[420996443,1776882636093,-279.9045709,0.00010173,2]
[420996444,1776882636102,-235.75327194,0.00010173,2]
[420996445,1776882636112,-244.476143,0.00010173,2]
[420996446,1776882636122,-253.52176029,0.00010173,2]
[420996447,1776882636132,-262.90206542,0.00010173,2]
[420996448,1776882636141,-272.62944185,0.00010173,2]
[420996449,1776882636150,-282.71673119,0.00010173,2]
[420996450,1776882636160,-293.17725025,0.00010173,2]
[420996451,1776882636169,-304.02480851,0.00010173,2]
[420996452,1776882636178,-315.27372642,0.00010173,2]
[420996453,1776882636187,-418.78546966,0.00010173,2]
[420996454,1776882636197,-500.0,0.00010219,2]
[420996455,1776882636206,-843.8937714,0.00010221,2]
[420996456,1776882636215,-1236.75324399,0.00010222,2]
[420996457,1776882636224,-500.0,0.00010228,2]
[420996458,1776882636234,-151.0,0.00010228,2]
[420996459,1776882636243,-160.0,0.00010234,2]
[420996460,1776882636253,-8752.176192,0.00010234,2]
[420996461,1776882636262,-224.2416782,0.00010234,2]
[420996462,1776882636271,-333.0,0.00010247,3]
[420996463,1776882636281,-2000.0,0.00010274,2]
[420996464,1776882636290,-500.0,0.00010283,2]
[420996465,1776882636300,-151.0,0.00010283,2]
[420996466,1776882636309,-168.61,0.00010293,2]
[420996467,1776882636319,-1532.0,0.00010319,2]
[420996468,1776882636329,-152.0,0.00010319,2]
[420996469,1776882636338,-1532.0,0.00010319,2]
[420996470,1776882636347,-1532.0,0.00010319,2]
[420996471,1776882636355,-1532.0,0.00010319,2]
[420996472,1776882636364,-1532.0,0.00010319,2]
[420996473,1776882636373,-1532.0,0.00010319,2]
[420996474,1776882636382,-500.0,0.00010338,2]
[420996475,1776882636392,-151.0,0.00010338,2]
[420996476,1776882636401,-500.0,0.00010393,2]
[420996477,1776882636410,-151.0,0.00010393,2]
[420996478,1776882636419,-500.0,0.00010448,2]
[420996479,1776882636428,-151.0,0.00010448,2]
[420996480,1776882636437,-160.0,0.00010476,2]
[420996481,1776882636446,-747.745012,0.00010476,2]
[420996482,1776882636455,-1335.490025,0.00010476,2]
[420996483,1776882636464,-160.0,0.00010476,2]
[420996484,1776882636474,-669.26521,0.00010476,2]
[420996485,1776882636483,-1178.530421,0.00010476,2]
[420996486,1776882636492,-160.0,0.00010476,2]
[420996487,1776882636501,-1180.173128,0.00010476,2]
[420996488,1776882636511,-2200.346257,0.00010476,2]
[420996489,1776882636520,-160.0,0.00010476,2]
[420996490,1776882636529,-455.534899,0.00010476,2]
[420996491,1776882636539,-751.069799,0.00010476,2]
[420996492,1776882636549,-160.0,0.00010476,2]
[420996493,1776882636559,-615.807839,0.00010476,2]
[420996494,1776882636568,-1071.615679,0.00010476,2]
[420996495,1776882636579,-160.0,0.00010476,2]
[420996496,1776882636588,-1765.194041,0.00010476,2]
[420996497,1776882636598,-3370.388083,0.00010476,2]
[420996498,1776882636607,-500.0,0.00010503,2]
[420996499,1776882636616,-151.0,0.00010503,2]
[420996500,1776882636626,-1600.0,0.00010506,2]
[420996501,1776882636635,-500.0,0.00010521,2]
[420996502,1776882636644,-182.94,0.00010556,2]
[420996503,1776882636653,-500.0,0.00010558,2]
[420996504,1776882636663,-151.0,0.00010558,2]
[420996505,1776882636673,-1117.0,0.00010573,2]
[420996506,1776882636682,-200.0,0.00010575,2]
[420996507,1776882636691,-2287.0,0.000106,5]
[420996508,1776882636700,-500.0,0.00010613,2]
[420996509,1776882636709,-151.0,0.00010613,2]
[420996510,1776882636718,-3856.55,0.00010645,2]
[420996511,1776882636727,-475.60903716,0.00010662,2]
[420996512,1776882636736,-500.0,0.00010668,2]
[420996513,1776882636745,-151.0,0.00010668,2]
[420996514,1776882636755,-297246.35108781,0.0001069,3]
[420996515,1776882636764,-10836.64482244,0.000107,2]
[420996516,1776882636773,-200.0,0.00010721,2]
[420996517,1776882636783,-1481.23780761,0.00010721,2]
[420996518,1776882636791,-200.0,0.00010721,2]
[420996519,1776882636801,-217.15233878,0.00010721,2]
[420996520,1776882636811,-181.08010149,0.00010721,2]
[420996521,1776882636821,-771.01748645,0.00010721,2]
[420996522,1776882636830,-290.26104003,0.00010721,2]
[420996523,1776882636839,-500.0,0.00010723,2]
[420996524,1776882636848,-151.0,0.00010723,2]
[420996525,1776882636857,-158.0,0.00010885,3]
[420996526,1776882636867,-1056.66,0.000109,2]
[420996527,1776882636876,-1606.21,0.000109,2]
[420996528,1776882636885,-18399.68303275,0.000109,2]
[420996529,1776882636894,-18399.68303269,0.000109,2]
[420996530,1776882636903,-18399.68303269,0.000109,2]
[420996531,1776882636912,-18399.68303269,0.000109,2]
[420996532,1776882636921,-18399.68303269,0.000109,2]
[420996533,1776882636931,-18399.68303269,0.000109,2]
[420996534,1776882636940,-412.24,0.00010907,2]
[420996535,1776882636950,-2551.0,0.00010917,2]
[420996536,1776882636959,-736.0,0.00010917,2]
[420996537,1776882636968,-823.0,0.00010917,2]
[420996538,1776882636977,-333.0,0.00010938,3]
[420996539,1776882636987,-500.0,0.00010959,2]
[420996540,1776882636995,-150.0,0.00010959,2]
[420996541,1776882637005,-3240.0,0.00010959,2]
[420996542,1776882637014,-1056.66,0.00011,2]
[420996543,1776882637024,-1056.66,0.00011,2]
[420996544,1776882637034,-1056.66,0.00011,2]
[420996545,1776882637044,-1056.66,0.00011,2]
[420996546,1776882637054,-359.16,0.00011,2]
[420996547,1776882637065,-1606.21,0.00011,2]
[420996548,1776882637074,-1606.21,0.00011,2]
[420996549,1776882637084,-1606.21,0.00011,2]
[420996550,1776882637093,-1606.21,0.00011,2]
[420996551,1776882637102,-1019.65229,0.00011,2]
[420996552,1776882637112,-912.634378,0.00011,2]
[420996553,1776882637121,-1609.326993,0.00011,2]
[420996554,1776882637131,-931.775931,0.00011,2]
[420996555,1776882637140,-839.737963,0.00011,2]
[420996556,1776882637150,-2407.082783,0.00011,2]
[420996557,1776882637159,-152.0,0.00011015,3]
[420996558,1776882637168,-182.94,0.00011036,2]
[420996559,1776882637179,-150.0,0.00011233,2]
[420996560,1776882637189,-200.0,0.00011269,2]
[420996561,1776882637198,-1536.04360649,0.00011269,2]
[420996562,1776882637209,-225.18697532,0.00011269,2]
[420996563,1776882637218,-187.78006525,0.00011269,2]
[420996564,1776882637228,-799.54513345,0.00011269,2]
[420996565,1776882637237,-301.00069851,0.00011269,2]
[420996566,1776882637246,-2000.0,0.00011301,2]